[Event "Schack-SM 2024: Mastarklassen"]
[Site "Fortnox Arena, Hejaregatan 5, Vaxjo, Sweden"]
[Date "2024.07.02"]
[Round "4.11"]
[White "Arvidsson, Jonas"]
[Black "Johnson, Daniel"]
[Result "1/2-1/2"]
[TimeControl "90 minutes for 40 moves + 30 minutes for the rest of the game + 30 seconds per move from move one."]
[WhiteElo "1960"]
[BlackElo "2126"]

1. e4 {[%clk 01:30:57]} {[%emt 00:00:02]} e5 {[%clk 01:25:53]} {[%emt
00:04:58]} 2. Nf3 {[%clk 01:31:23]} {[%emt 00:00:13]} Nc6 {[%clk 01:26:19]}
{[%emt 00:00:04]} 3. d4 {[%clk 01:31:47]} {[%emt 00:00:05]} exd4 {[%clk
01:26:45]} {[%emt 00:00:04]} 4. Nxd4 {[%clk 01:32:12]} {[%emt 00:00:05]} Nf6
{[%clk 01:27:08]} {[%emt 00:00:08]} 5. Nc3 {[%clk 01:32:30]} {[%emt 00:00:11]}
Bb4 {[%clk 01:26:34]} {[%emt 00:01:04]} 6. Nxc6 {[%clk 01:32:39]} {[%emt
00:00:22]} bxc6 {[%clk 01:26:56]} {[%emt 00:00:07]} 7. Bd3 {[%clk 01:33:04]}
{[%emt 00:00:06]} d5 {[%clk 01:26:54]} {[%emt 00:00:31]} 8. exd5 {[%clk
01:33:27]} {[%emt 00:00:08]} O-O {[%clk 01:26:55]} {[%emt 00:00:27]} 9. O-O
{[%clk 01:33:52]} {[%emt 00:00:06]} cxd5 {[%clk 01:27:16]} {[%emt 00:00:08]} 10.
Bg5 {[%clk 01:33:24]} {[%emt 00:00:58]} c6 {[%clk 01:27:00]} {[%emt 00:00:47]}
11. a3 {[%clk 01:30:59]} {[%emt 00:02:57]} Bd6 {[%clk 01:25:53]} {[%emt
00:01:35]} 12. Qf3 {[%clk 01:27:23]} {[%emt 00:04:05]} Rb8 {[%clk 01:20:16]}
{[%emt 00:06:07]} 13. Bxf6 {[%clk 01:22:50]} {[%emt 00:05:04]} Qxf6 {[%clk
01:20:25]} {[%emt 00:00:21]} 14. Qxf6 {[%clk 01:23:15]} {[%emt 00:00:06]} gxf6
{[%clk 01:20:47]} {[%emt 00:00:07]} 15. Rab1 {[%clk 01:20:25]} {[%emt
00:03:20]} a5 {[%clk 01:00:22]} {[%emt 00:20:55]} 16. Ne2 {[%clk 01:14:33]}
{[%emt 00:06:23]} Be6 {[%clk 00:49:55]} {[%emt 00:10:55]} 17. Nd4 {[%clk
01:07:37]} {[%emt 00:07:27]} Rb6 {[%clk 00:48:07]} {[%emt 00:02:18]} 18. b4
{[%clk 01:00:21]} {[%emt 00:07:47]} axb4 {[%clk 00:33:54]} {[%emt 00:14:43]} 19.
axb4 {[%clk 01:00:41]} {[%emt 00:00:10]} Be5 {[%clk 00:31:55]} {[%emt
00:02:28]} 20. Nxe6 {[%clk 00:59:15]} {[%emt 00:01:56]} fxe6 {[%clk 00:32:13]}
{[%emt 00:00:12]} 21. c4 {[%clk 00:59:03]} {[%emt 00:00:42]} Bc3 {[%clk
00:27:25]} {[%emt 00:05:19]} 22. b5 {[%clk 00:52:10]} {[%emt 00:07:24]} dxc4
{[%clk 00:18:29]} {[%emt 00:09:24]} 23. Bxc4 {[%clk 00:51:39]} {[%emt
00:01:01]} cxb5 {[%clk 00:18:48]} {[%emt 00:00:12]} 24. Bxb5 {[%clk 00:49:46]}
{[%emt 00:02:23]} Rfb8 {[%clk 00:18:38]} {[%emt 00:00:39]} 25. Bd3 {[%clk
00:50:07]} {[%emt 00:00:09]} Rb2 {[%clk 00:18:15]} {[%emt 00:00:53]} 26. g4
{[%clk 00:47:53]} {[%emt 00:02:45]} Bd4 {[%clk 00:18:15]} {[%emt 00:00:29]} 27.
h3 {[%clk 00:45:53]} {[%emt 00:02:31]} Bxf2+ {[%clk 00:18:00]} {[%emt
00:00:44]} 28. Kh1 {[%clk 00:42:34]} {[%emt 00:03:50]} Bd4 {[%clk 00:15:30]}
{[%emt 00:02:59]} 29. Rxb2 {[%clk 00:42:54]} {[%emt 00:00:11]} Rxb2 {[%clk
00:08:31]} {[%emt 00:07:28]} 30. Rb1 {[%clk 00:42:16]} {[%emt 00:01:08]} Rd2
{[%clk 00:03:59]} {[%emt 00:05:02]} 31. Bc4 {[%clk 00:41:30]} {[%emt 00:01:16]}
Kf7 {[%clk 00:04:06]} {[%emt 00:00:24]} 32. Rb7+ {[%clk 00:41:41]} {[%emt
00:00:19]} Kg6 {[%clk 00:04:28]} {[%emt 00:00:08]} 33. Bxe6 {[%clk 00:41:01]}
{[%emt 00:01:10]} Kg5 {[%clk 00:04:22]} {[%emt 00:00:35]} 34. Bd5 {[%clk
00:27:13]} {[%emt 00:14:18]} Be3 {[%clk 00:04:10]} {[%emt 00:00:41]} 35. Rb3
{[%clk 00:25:11]} {[%emt 00:02:33]} Kf4 {[%clk 00:03:31]} {[%emt 00:01:09]} 36.
Bg2 {[%clk 00:23:50]} {[%emt 00:01:51]} Rd1+ {[%clk 00:00:43]} {[%emt
00:03:18]} 37. Kh2 {[%clk 00:24:13]} {[%emt 00:00:06]} Bg1+ {[%clk 00:01:02]}
{[%emt 00:00:11]} 38. Kh1 {[%clk 00:24:36]} {[%emt 00:00:07]} Be3+ {[%clk
00:01:24]} {[%emt 00:00:08]} 39. Kh2 {[%clk 00:24:53]} {[%emt 00:00:14]} Bg1+
{[%clk 00:00:36]} {[%emt 00:01:18]} 40. Kh1 {[%clk 00:25:16]} {[%emt 00:00:07]}
Bc5+ {[%clk 00:00:33]} {[%emt 00:00:33]} 41. Kh2 {[%clk 00:24:56]} {[%emt
00:00:52]} Bd6 {[%clk 00:18:52]} {[%emt 00:12:09]} 42. Bb7 {[%clk 00:53:10]}
{[%emt 00:02:16]} Rd2+ {[%clk 00:18:33]} {[%emt 00:00:50]} 43. Kg1 {[%clk
00:52:14]} {[%emt 00:01:25]} Bc5+ {[%clk 00:18:03]} {[%emt 00:00:59]} 44. Kf1
{[%clk 00:51:39]} {[%emt 00:01:04]} Rf2+ {[%clk 00:17:31]} {[%emt 00:01:03]} 45.
Ke1 {[%clk 00:51:49]} {[%emt 00:00:20]} Be3 {[%emt 00:06:32]} 1/2-1/2

[Event "Schack-SM 2024: Mastarklassen"]
[Site "Fortnox Arena, Hejaregatan 5, Vaxjo, Sweden"]
[Date "2024.07.02"]
[Round "4.12"]
[White "Neretljak, Nedzad"]
[Black "Karlsson, Stefan 2005"]
[Result "0-1"]
[TimeControl "90 minutes for 40 moves + 30 minutes for the rest of the game + 30 seconds per move from move one."]
[WhiteTitle "CM"]
[WhiteElo "2048"]
[BlackElo "2072"]

1. e4 {[%clk 01:30:56]} {[%emt 00:00:03]} c5 {[%clk 01:30:52]} {[%emt
00:00:09]} 2. Nf3 {[%clk 01:31:18]} {[%emt 00:00:08]} d6 {[%clk 01:31:15]}
{[%emt 00:00:08]} 3. d4 {[%clk 01:29:47]} {[%emt 00:02:00]} cxd4 {[%clk
01:31:17]} {[%emt 00:00:29]} 4. Nxd4 {[%clk 01:29:59]} {[%emt 00:00:17]} Nf6
{[%clk 01:31:39]} {[%emt 00:00:08]} 5. Nc3 {[%clk 01:30:05]} {[%emt 00:00:23]}
Nc6 {[%clk 01:31:46]} {[%emt 00:00:24]} 6. Be2 {[%clk 01:28:04]} {[%emt
00:02:31]} g6 {[%clk 01:29:24]} {[%emt 00:02:51]} 7. Be3 {[%clk 01:27:35]}
{[%emt 00:00:59]} Bg7 {[%clk 01:28:39]} {[%emt 00:01:16]} 8. O-O {[%clk
01:23:46]} {[%emt 00:04:19]} Bd7 {[%clk 01:26:03]} {[%emt 00:03:06]} 9. f4
{[%clk 01:23:59]} {[%emt 00:00:16]} O-O {[%clk 01:23:36]} {[%emt 00:02:57]} 10.
Nb3 {[%clk 01:20:27]} {[%emt 00:04:02]} a5 {[%clk 01:19:00]} {[%emt 00:05:06]}
11. a4 {[%clk 01:20:31]} {[%emt 00:00:27]} Be6 {[%clk 01:19:05]} {[%emt
00:00:25]} 12. Nd4 {[%clk 01:20:30]} {[%emt 00:00:30]} Nxd4 {[%clk 01:17:21]}
{[%emt 00:02:15]} 13. Bxd4 {[%clk 01:20:50]} {[%emt 00:00:09]} Rc8 {[%clk
01:07:49]} {[%emt 00:10:03]} 14. b3 {[%clk 01:21:07]} {[%emt 00:00:13]} Bd7
{[%clk 01:05:51]} {[%emt 00:02:28]} 15. e5 {[%clk 01:18:13]} {[%emt 00:03:24]}
Ne8 {[%clk 01:01:09]} {[%emt 00:05:12]} 16. Nd5 {[%clk 01:11:35]} {[%emt
00:07:07]} dxe5 {[%clk 00:55:56]} {[%emt 00:05:44]} 17. Bb6 {[%clk 01:11:11]}
{[%emt 00:00:54]} Nc7 {[%clk 00:55:38]} {[%emt 00:00:49]} 18. Qd2 {[%clk
01:07:48]} {[%emt 00:03:53]} Bc6 {[%clk 00:53:00]} {[%emt 00:03:05]} 19. c4
{[%clk 00:45:05]} {[%emt 00:23:15]} e6 {[%clk 00:43:43]} {[%emt 00:09:47]} 20.
Rad1 {[%clk 00:44:41]} {[%emt 00:00:54]} exd5 {[%clk 00:43:24]} {[%emt
00:00:50]} 21. Qxa5 {[%clk 00:42:23]} {[%emt 00:02:47]} Ra8 {[%clk 00:34:01]}
{[%emt 00:09:52]} 22. Qe1 {[%emt 00:00:06]} d4 {[%emt 00:04:14]} 23. fxe5
{[%clk 00:36:33]} {[%emt 00:02:31]} Qg5 {[%clk 00:33:24]} {[%emt 00:01:36]} 24.
Rf2 {[%clk 00:33:22]} {[%emt 00:03:41]} Ne6 {[%clk 00:32:23]} {[%emt 00:01:31]}
25. Qf1 {[%clk 00:29:12]} {[%emt 00:04:40]} Bxe5 {[%clk 00:31:05]} {[%emt
00:01:49]} 26. Bf3 {[%clk 00:28:06]} {[%emt 00:01:36]} Qh6 {[%clk 00:27:28]}
{[%emt 00:04:07]} 27. g3 {[%clk 00:27:44]} {[%emt 00:00:53]} Ng5 {[%clk
00:21:57]} {[%emt 00:06:00]} 28. Bg2 {[%clk 00:28:01]} {[%emt 00:00:12]} Bxg2
{[%clk 00:21:39]} {[%emt 00:00:48]} 29. Rxg2 {[%clk 00:28:05]} {[%emt
00:00:27]} Qh5 {[%clk 00:20:51]} {[%emt 00:01:17]} 30. Rd3 {[%clk 00:25:52]}
{[%emt 00:02:43]} Qg4 {[%clk 00:19:17]} {[%emt 00:02:04]} 31. a5 {[%clk
00:23:27]} {[%emt 00:02:56]} Rfe8 {[%clk 00:18:27]} {[%emt 00:01:19]} 32. b4
{[%clk 00:22:48]} {[%emt 00:01:10]} Re6 {[%clk 00:17:58]} {[%emt 00:00:58]} 33.
b5 {[%clk 00:20:34]} {[%emt 00:02:45]} Rae8 {[%clk 00:18:08]} {[%emt 00:00:20]}
34. Re2 {[%clk 00:19:50]} {[%emt 00:01:15]} Bg7 {[%clk 00:16:47]} {[%emt
00:01:50]} 35. Rxe6 {[%clk 00:20:00]} {[%emt 00:00:20]} Rxe6 {[%clk 00:16:18]}
{[%emt 00:00:59]} 36. Bc7 {[%clk 00:13:42]} {[%emt 00:06:49]} Nh3+ {[%clk
00:15:57]} {[%emt 00:00:49]} 37. Kh1 {[%clk 00:13:23]} {[%emt 00:00:49]} Qe4+
{[%clk 00:16:10]} {[%emt 00:00:18]} 38. Rf3 {[%clk 00:09:32]} {[%emt 00:04:21]}
Ng5 {[%clk 00:16:27]} {[%emt 00:00:13]} 39. Kg2 {[%clk 00:09:08]} {[%emt
00:00:54]} Rf6 {[%clk 00:16:34]} {[%emt 00:00:23]} 40. Bf4 {[%clk 00:09:28]}
{[%emt 00:00:11]} Nxf3 {[%clk 00:16:44]} {[%emt 00:00:19]} 41. Qxf3 {[%clk
00:09:47]} {[%emt 00:00:10]} Qxf3+ {[%clk 00:16:53]} {[%emt 00:00:22]} 42. Kxf3
{[%clk 00:10:09]} {[%emt 00:00:08]} Bh6 {[%clk 00:16:55]} {[%emt 00:00:28]} 43.
c5 {[%clk 00:10:24]} {[%emt 00:00:15]} Bxf4 {[%clk 00:17:13]} {[%emt 00:00:11]}
44. gxf4 {[%clk 00:10:40]} {[%emt 00:00:14]} Rf5 {[%clk 00:16:22]} {[%emt
00:01:22]} 45. Ke4 {[%clk 00:05:47]} {[%emt 00:05:23]} 0-1

[Event "Schack-SM 2024: Mastarklassen"]
[Site "Fortnox Arena, Hejaregatan 5, Vaxjo, Sweden"]
[Date "2024.07.02"]
[Round "4.14"]
[White "Willstedt, Lukas"]
[Black "Karlsson, Jorgen"]
[Result "1-0"]
[TimeControl "90 minutes for 40 moves + 30 minutes for the rest of the game + 30 seconds per move from move one."]
[WhiteElo "2082"]
[BlackElo "2020"]

1. d4 {[%clk 01:30:54]} {[%emt 00:00:05]} d6 {[%clk 01:30:56]} {[%emt
00:00:05]} 2. c4 {[%clk 01:31:19]} {[%emt 00:00:06]} g6 {[%clk 01:31:22]}
{[%emt 00:00:04]} 3. e4 {[%clk 01:31:42]} {[%emt 00:00:06]} Bg7 {[%clk
01:31:48]} {[%emt 00:00:05]} 4. Nc3 {[%clk 01:32:05]} {[%emt 00:00:06]} Nc6
{[%clk 01:32:14]} {[%emt 00:00:04]} 5. d5 {[%clk 01:32:27]} {[%emt 00:00:08]}
Nd4 {[%clk 01:32:30]} {[%emt 00:00:15]} 6. Be3 {[%clk 01:32:47]} {[%emt
00:00:10]} e5 {[%clk 01:32:54]} {[%emt 00:00:05]} 7. Nge2 {[%clk 01:32:36]}
{[%emt 00:00:41]} Nxe2 {[%clk 01:33:17]} {[%emt 00:00:07]} 8. Bxe2 {[%clk
01:32:57]} {[%emt 00:00:10]} f5 {[%clk 01:33:17]} {[%emt 00:00:29]} 9. f3
{[%clk 01:32:54]} {[%emt 00:00:33]} a6 {[%clk 01:33:29]} {[%emt 00:00:18]} 10.
b4 {[%clk 01:32:27]} {[%emt 00:00:57]} Bh6 {[%clk 01:31:35]} {[%emt 00:02:24]}
11. Bf2 {[%clk 01:31:41]} {[%emt 00:01:15]} Nf6 {[%clk 01:31:31]} {[%emt
00:00:35]} 12. c5 {[%clk 01:28:29]} {[%emt 00:03:42]} O-O {[%clk 01:31:14]}
{[%emt 00:00:47]} 13. Qb3 {[%clk 01:26:05]} {[%emt 00:02:54]} fxe4 {[%clk
01:25:20]} {[%emt 00:06:24]} 14. Nxe4 {[%clk 01:25:58]} {[%emt 00:00:37]} Nxe4
{[%clk 01:24:20]} {[%emt 00:01:30]} 15. fxe4 {[%clk 01:26:26]} {[%emt
00:00:02]} Rxf2 {[%clk 01:24:30]} {[%emt 00:00:20]} 16. Kxf2 {[%clk 01:26:19]}
{[%emt 00:00:37]} Qh4+ {[%clk 01:24:55]} {[%emt 00:00:05]} 17. g3 {[%clk
01:14:30]} {[%emt 00:12:19]} Qxe4 {[%clk 01:25:18]} {[%emt 00:00:08]} 18. Rad1
{[%clk 01:14:48]} {[%emt 00:00:11]} Bg4 {[%clk 01:25:04]} {[%emt 00:00:44]} 19.
Bxg4 {[%clk 01:13:21]} {[%emt 00:01:56]} Qxg4 {[%clk 01:25:27]} {[%emt
00:00:08]} 20. Rhe1 {[%clk 01:09:02]} {[%emt 00:04:48]} e4 {[%clk 01:22:48]}
{[%emt 00:03:10]} 21. Kg2 {[%clk 01:06:44]} {[%emt 00:02:47]} e3 {[%clk
01:22:42]} {[%emt 00:00:37]} 22. Qd3 {[%clk 01:00:05]} {[%emt 00:07:10]} Rf8
{[%clk 01:20:08]} {[%emt 00:03:03]} 23. Re2 {[%clk 00:58:33]} {[%emt 00:02:02]}
Qf3+ {[%clk 01:14:11]} {[%emt 00:06:27]} 24. Kg1 {[%clk 00:58:51]} {[%emt
00:00:11]} Rf5 {[%clk 01:14:09]} {[%emt 00:00:33]} 25. Rg2 {[%clk 00:54:34]}
{[%emt 00:04:46]} Re5 {[%clk 01:12:16]} {[%emt 00:02:24]} 26. cxd6 {[%clk
00:52:44]} {[%emt 00:02:21]} cxd6 {[%clk 01:12:40]} {[%emt 00:00:05]} 27. Rc2
{[%clk 00:50:42]} {[%emt 00:02:31]} Qg4 {[%clk 01:08:06]} {[%emt 00:05:05]} 28.
Rc4 {[%clk 00:48:26]} {[%emt 00:02:46]} Qd7 {[%clk 01:05:47]} {[%emt 00:02:49]}
29. Qc2 {[%clk 00:47:04]} {[%emt 00:01:51]} e2 {[%clk 01:05:00]} {[%emt
00:01:18]} 30. Re1 {[%clk 00:46:57]} {[%emt 00:00:36]} Be3+ {[%clk 01:03:42]}
{[%emt 00:01:48]} 31. Kg2 {[%clk 00:46:57]} {[%emt 00:00:30]} Qb5 {[%clk
01:00:28]} {[%emt 00:03:46]} 32. Rc8+ {[%clk 00:43:30]} {[%emt 00:03:57]} Kf7
{[%clk 01:00:48]} {[%emt 00:00:09]} 33. Qxe2 {[%clk 00:42:44]} {[%emt
00:01:16]} Qxd5+ {[%clk 00:52:03]} {[%emt 00:09:15]} 34. Qf3+ {[%clk 00:42:39]}
{[%emt 00:00:35]} Qxf3+ {[%clk 00:52:25]} {[%emt 00:00:07]} 35. Kxf3 {[%clk
00:43:03]} {[%emt 00:00:07]} Bd4 {[%clk 00:52:04]} {[%emt 00:00:51]} 36. Rxe5
{[%clk 00:43:24]} {[%emt 00:00:09]} dxe5 {[%clk 00:52:09]} {[%emt 00:00:25]} 37.
Rc7+ {[%clk 00:43:37]} {[%emt 00:00:16]} Kf6 {[%clk 00:51:11]} {[%emt
00:01:28]} 38. Rxh7 {[%clk 00:41:54]} {[%emt 00:02:14]} b5 {[%clk 00:50:34]}
{[%emt 00:01:07]} 39. Rc7 {[%clk 00:40:34]} {[%emt 00:01:49]} Kf5 {[%clk
00:50:33]} {[%emt 00:00:32]} 40. g4+ {[%clk 00:40:42]} {[%emt 00:00:22]} Kg5
{[%clk 00:50:20]} {[%emt 00:00:43]} 41. Rc6 {[%clk 00:40:57]} {[%emt 00:00:15]}
1-0

[Event "Schack-SM 2024: Mastarklassen"]
[Site "Fortnox Arena, Hejaregatan 5, Vaxjo, Sweden"]
[Date "2024.07.02"]
[Round "4.1"]
[White "Nygren, David"]
[Black "Ljung, Harald"]
[Result "1/2-1/2"]
[TimeControl "90 minutes for 40 moves + 30 minutes for the rest of the game + 30 seconds per move from move one."]
[WhiteElo "2132"]
[BlackElo "2101"]

1. Nf3 {[%clk 01:30:56]} {[%emt 00:00:04]} Nf6 {[%clk 01:30:21]} {[%emt
00:00:38]} 2. d4 {[%clk 01:31:01]} {[%emt 00:00:26]} d5 {[%clk 01:30:23]}
{[%emt 00:00:28]} 3. c4 {[%clk 01:30:52]} {[%emt 00:00:38]} e6 {[%clk
01:30:45]} {[%emt 00:00:09]} 4. Nc3 {[%clk 01:30:08]} {[%emt 00:01:14]} c6
{[%clk 01:30:58]} {[%emt 00:00:18]} 5. e3 {[%clk 01:29:30]} {[%emt 00:01:07]}
Bd6 {[%clk 01:30:45]} {[%emt 00:00:43]} 6. Qc2 {[%clk 01:28:32]} {[%emt
00:01:27]} Nbd7 {[%clk 01:30:12]} {[%emt 00:01:04]} 7. cxd5 {[%clk 01:27:30]}
{[%emt 00:01:32]} exd5 {[%clk 01:29:59]} {[%emt 00:00:44]} 8. Bd3 {[%clk
01:25:51]} {[%emt 00:02:08]} Nf8 {[%clk 01:28:08]} {[%emt 00:02:20]} 9. Bd2
{[%clk 01:19:53]} {[%emt 00:06:28]} Ne6 {[%clk 01:28:29]} {[%emt 00:00:11]} 10.
Bf5 {[%clk 01:11:47]} {[%emt 00:08:35]} g6 {[%clk 01:26:43]} {[%emt 00:02:16]}
11. Bh3 {[%clk 01:10:55]} {[%emt 00:01:21]} Ng7 {[%clk 01:25:33]} {[%emt
00:01:41]} 12. Bxc8 {[%clk 01:07:50]} {[%emt 00:03:35]} Qxc8 {[%clk 01:25:27]}
{[%emt 00:00:36]} 13. O-O {[%clk 01:04:44]} {[%emt 00:03:35]} O-O {[%clk
01:25:08]} {[%emt 00:00:50]} 14. Rab1 {[%clk 01:00:56]} {[%emt 00:04:17]} Nf5
{[%clk 01:18:48]} {[%emt 00:06:49]} 15. b4 {[%clk 00:56:36]} {[%emt 00:04:51]}
a6 {[%clk 01:18:17]} {[%emt 00:01:00]} 16. Rfe1 {[%clk 00:48:01]} {[%emt
00:09:06]} Re8 {[%clk 01:14:58]} {[%emt 00:03:50]} 17. e4 {[%clk 00:43:19]}
{[%emt 00:05:12]} dxe4 {[%clk 01:14:52]} {[%emt 00:00:36]} 18. Nxe4 {[%clk
00:40:28]} {[%emt 00:03:21]} Nxe4 {[%clk 01:14:36]} {[%emt 00:00:46]} 19. Rxe4
{[%clk 00:40:51]} {[%emt 00:00:07]} Rxe4 {[%clk 01:14:42]} {[%emt 00:00:24]} 20.
Qxe4 {[%clk 00:41:16]} {[%emt 00:00:05]} Bf8 {[%clk 01:14:43]} {[%emt
00:00:29]} 21. Re1 {[%clk 00:38:25]} {[%emt 00:03:21]} Qd7 {[%clk 01:13:31]}
{[%emt 00:01:41]} 22. g4 {[%clk 00:31:30]} {[%emt 00:07:24]} Nd6 {[%clk
01:13:04]} {[%emt 00:00:58]} 23. Qf4 {[%clk 00:31:44]} {[%emt 00:00:17]} Bh6
{[%clk 01:10:01]} {[%emt 00:03:31]} 24. g5 {[%clk 00:24:45]} {[%emt 00:07:32]}
Bg7 {[%clk 01:10:06]} {[%emt 00:00:24]} 25. Ne5 {[%clk 00:23:40]} {[%emt
00:01:36]} Qd8 {[%clk 01:06:26]} {[%emt 00:04:07]} 26. Bc3 {[%clk 00:19:37]}
{[%emt 00:04:36]} Nf5 {[%clk 01:05:59]} {[%emt 00:00:55]} 27. h4 {[%clk
00:17:48]} {[%emt 00:02:21]} Qd5 {[%clk 01:05:25]} {[%emt 00:01:02]} 28. h5
{[%clk 00:16:39]} {[%emt 00:01:40]} Re8 {[%clk 00:48:20]} {[%emt 00:17:34]} 29.
h6 {[%clk 00:12:54]} {[%emt 00:04:15]} Bxe5 {[%clk 00:42:13]} {[%emt 00:06:37]}
30. dxe5 {[%clk 00:11:11]} {[%emt 00:02:13]} Rd8 {[%clk 00:41:40]} {[%emt
00:01:02]} 31. e6 {[%clk 00:09:00]} {[%emt 00:02:41]} fxe6 {[%clk 00:41:47]}
{[%emt 00:00:23]} 32. Qc7 {[%clk 00:05:59]} {[%emt 00:03:30]} Rf8 {[%clk
00:39:29]} {[%emt 00:02:48]} 33. Qxb7 {[%clk 00:05:17]} {[%emt 00:01:12]} Qc4
{[%clk 00:33:35]} {[%emt 00:06:24]} 34. Bf6 {[%clk 00:04:03]} {[%emt 00:01:45]}
Qg4+ {[%clk 00:33:24]} {[%emt 00:00:41]} 35. Kf1 {[%clk 00:03:14]} {[%emt
00:01:20]} Qc4+ {[%clk 00:33:50]} {[%emt 00:00:03]} 36. Re2 {[%clk 00:02:41]}
{[%emt 00:01:03]} e5 {[%clk 00:34:17]} {[%emt 00:00:03]} 37. Qd7 {[%clk
00:02:17]} {[%emt 00:00:54]} e4 {[%clk 00:34:13]} {[%emt 00:00:34]} 38. Kg1
{[%clk 00:01:17]} {[%emt 00:01:30]} Qc1+ {[%clk 00:26:32]} {[%emt 00:08:11]} 39.
Kh2 {[%clk 00:00:53]} {[%emt 00:00:49]} Qf4+ {[%clk 00:26:50]} {[%emt
00:00:16]} 40. Kg1 {[%clk 00:00:39]} {[%emt 00:00:45]} Qg4+ {[%clk 00:27:11]}
{[%emt 00:00:08]} 41. Kh2 {[%clk 00:30:19]} {[%emt 00:00:49]} Qf4+ {[%clk
00:55:53]} {[%emt 00:01:48]} 42. Kg1 {[%clk 00:26:44]} {[%emt 00:04:05]} Qg4+
{[%clk 00:56:16]} {[%emt 00:00:08]} 43. Kh2 {[%clk 00:27:05]} {[%emt 00:00:08]}
Qh4+ {[%clk 00:56:37]} {[%emt 00:00:09]} 44. Kg1 {[%clk 00:26:32]} {[%emt
00:01:03]} Qg4+ {[%clk 00:57:03]} {[%emt 00:00:04]} 45. Kh2 {[%clk 00:26:25]}
1/2-1/2

[Event "Schack-SM 2024: Mastarklassen"]
[Site "Fortnox Arena, Hejaregatan 5, Vaxjo, Sweden"]
[Date "2024.07.02"]
[Round "4.2"]
[White "Bjorkman, Filip"]
[Black "Walinder, Lars"]
[Result "1-0"]
[TimeControl "90 minutes for 40 moves + 30 minutes for the rest of the game + 30 seconds per move from move one."]
[BlackTitle "FM"]
[WhiteElo "2116"]
[BlackElo "2233"]

1. e4 {[%clk 01:30:56]} {[%emt 00:00:03]} c5 {[%clk 01:30:28]} {[%emt
00:00:32]} 2. Nf3 {[%clk 01:31:18]} {[%emt 00:00:07]} d6 {[%clk 01:30:44]}
{[%emt 00:00:15]} 3. d4 {[%clk 01:31:45]} {[%emt 00:00:02]} cxd4 {[%clk
01:30:57]} {[%emt 00:00:19]} 4. Nxd4 {[%clk 01:32:07]} {[%emt 00:00:08]} Nf6
{[%clk 01:31:13]} {[%emt 00:00:13]} 5. Nc3 {[%clk 01:32:30]} {[%emt 00:00:07]}
a6 {[%clk 01:31:18]} {[%emt 00:00:26]} 6. f3 {[%clk 01:32:53]} {[%emt
00:00:06]} e5 {[%clk 01:31:11]} {[%emt 00:00:37]} 7. Nb3 {[%clk 01:33:16]}
{[%emt 00:00:07]} Be6 {[%clk 01:31:25]} {[%emt 00:00:15]} 8. Be3 {[%clk
01:33:39]} {[%emt 00:00:07]} h5 {[%clk 01:31:06]} {[%emt 00:00:51]} 9. Nd5
{[%clk 01:34:02]} {[%emt 00:00:06]} Bxd5 {[%clk 01:30:48]} {[%emt 00:00:48]} 10.
exd5 {[%clk 01:34:25]} {[%emt 00:00:08]} Nbd7 {[%clk 01:30:28]} {[%emt
00:00:49]} 11. Rc1 {[%clk 01:34:37]} {[%emt 00:00:18]} g6 {[%clk 01:25:09]}
{[%emt 00:05:49]} 12. Qd2 {[%clk 01:33:22]} {[%emt 00:01:45]} Bg7 {[%clk
01:24:09]} {[%emt 00:01:29]} 13. Be2 {[%clk 01:29:58]} {[%emt 00:03:55]} O-O
{[%clk 01:20:30]} {[%emt 00:04:10]} 14. c4 {[%clk 01:26:32]} {[%emt 00:03:55]}
b6 {[%clk 01:16:24]} {[%emt 00:04:38]} 15. O-O {[%clk 01:25:00]} {[%emt
00:01:59]} a5 {[%clk 01:10:55]} {[%emt 00:06:01]} 16. Na1 {[%clk 01:18:42]}
{[%emt 00:06:48]} Nc5 {[%clk 00:56:47]} {[%emt 00:14:39]} 17. Nc2 {[%clk
01:13:14]} {[%emt 00:05:57]} Nfd7 {[%clk 00:46:22]} {[%emt 00:10:55]} 18. Na3
{[%clk 00:57:33]} {[%emt 00:16:12]} f5 {[%clk 00:44:04]} {[%emt 00:02:47]} 19.
Bg5 {[%clk 00:52:29]} {[%emt 00:05:34]} Bf6 {[%clk 00:42:55]} {[%emt 00:01:41]}
20. Bh6 {[%clk 00:51:28]} {[%emt 00:01:31]} Rf7 {[%clk 00:41:43]} {[%emt
00:01:42]} 21. Nb5 {[%clk 00:47:30]} {[%emt 00:04:29]} f4 {[%clk 00:30:22]}
{[%emt 00:11:51]} 22. g3 {[%clk 00:02:26]} {[%emt 00:45:33]} Rh7 {[%clk
00:18:15]} {[%emt 00:12:37]} 23. gxf4 {[%clk 00:02:50]} {[%emt 00:00:06]} Rxh6
{[%clk 00:18:10]} {[%emt 00:00:34]} 24. fxe5 {[%clk 00:03:19]} {[%emt
00:00:03]} Nxe5 {[%clk 00:17:37]} {[%emt 00:01:02]} 25. Nxd6 {[%clk 00:02:39]}
{[%emt 00:01:09]} Rh7 {[%clk 00:11:44]} {[%emt 00:06:24]} 26. Nb5 {[%clk
00:02:34]} {[%emt 00:00:35]} Qd7 {[%clk 00:09:49]} {[%emt 00:02:25]} 27. Kh1
{[%clk 00:02:47]} {[%emt 00:00:17]} Rf8 {[%clk 00:08:56]} {[%emt 00:01:23]} 28.
Rg1 {[%clk 00:03:09]} {[%emt 00:00:09]} Kh8 {[%clk 00:08:50]} {[%emt 00:00:36]}
29. b3 {[%clk 00:03:29]} {[%emt 00:00:10]} Rhf7 {[%clk 00:04:43]} {[%emt
00:04:37]} 30. Rcf1 {[%clk 00:03:36]} {[%emt 00:00:24]} Bg7 {[%clk 00:04:47]}
{[%emt 00:00:25]} 31. Qe3 {[%clk 00:03:38]} {[%emt 00:00:28]} Rf4 {[%clk
00:04:35]} {[%emt 00:00:42]} 32. a3 {[%clk 00:03:28]} {[%emt 00:00:40]} Qf7
{[%clk 00:03:27]} {[%emt 00:01:38]} 33. b4 {[%clk 00:02:59]} {[%emt 00:00:59]}
axb4 {[%clk 00:03:56]} {[%emt 00:00:02]} 34. axb4 {[%clk 00:03:21]} {[%emt
00:00:07]} Ncd7 {[%clk 00:03:56]} {[%emt 00:00:29]} 35. Nc7 {[%clk 00:01:35]}
{[%emt 00:02:17]} Nxf3 {[%clk 00:02:21]} {[%emt 00:02:03]} 36. Ne6 {[%clk
00:01:58]} {[%emt 00:00:08]} Bd4 {[%clk 00:01:59]} {[%emt 00:00:53]} 37. Qxf4
{[%clk 00:01:27]} {[%emt 00:01:01]} Qxf4 {[%clk 00:02:14]} {[%emt 00:00:15]} 38.
Nxf4 {[%clk 00:01:56]} Nxg1 {[%clk 00:00:54]} {[%emt 00:01:51]} 39. Nxg6+
{[%clk 00:02:01]} {[%emt 00:00:26]} Kg7 {[%clk 00:01:15]} {[%emt 00:00:09]} 40.
Nxf8 {[%clk 00:02:29]} {[%emt 00:00:01]} Nxf8 {[%clk 00:01:33]} {[%emt
00:00:13]} 41. Rxg1+ {[%clk 00:02:42]} {[%emt 00:00:16]} 1-0